[Event "Titled Tuesday Blitz July 05 Late 2022"]
[White "Chernobay, Artem"]
[Black "Dauner, Benedikt"]
[WhiteFideId "4167406"]
[BlackFideId "16225899"]
[WhiteElo "2473"]
[BlackElo "2230"]
[Result "0-1"]
[Round "06"]
[TimeControl "180+1"]
[Date "2022.07.05"]
[WhiteClock "0:00:01"]
[BlackClock "0:00:14"]

1. d4 {[%clk 0:03:00]}  b6 {[%clk 0:02:59]} 2. c4 {[%clk 0:03:01]}  Bb7 {[%clk 0:02:59]} 3. Nc3 {[%clk 0:03:01]}  Nf6 {[%clk 0:02:59]} 4. Qc2 {[%clk 0:02:50]}  d5 {[%clk 0:02:59]} 5. cxd5 {[%clk 0:02:48]}  Nxd5 {[%clk 0:03:00]} 6. e4 {[%clk 0:02:47]}  Nxc3 {[%clk 0:03:00]} 7. bxc3 {[%clk 0:02:44]}  e6 {[%clk 0:03:00]} 8. Nf3 {[%clk 0:02:43]}  Be7 {[%clk 0:02:59]} 9. Bb5+ {[%clk 0:02:40]}  c6 {[%clk 0:02:56]} 10. Be2 {[%clk 0:02:41]}  O-O {[%clk 0:02:55]} 11. O-O {[%clk 0:02:41]}  Nd7 {[%clk 0:02:56]} 12. Rd1 {[%clk 0:02:34]}  Rc8 {[%clk 0:02:55]} 13. Bf4 {[%clk 0:02:30]}  Qe8 {[%clk 0:02:46]} 14. a4 {[%clk 0:02:23]}  Nf6 {[%clk 0:02:41]} 15. c4 {[%clk 0:02:11]}  Bb4 {[%clk 0:02:20]} 16. Bd3 {[%clk 0:01:33]}  h6 {[%clk 0:02:10]} 17. Rdb1 {[%clk 0:01:25]}  a5 {[%clk 0:02:09]} 18. Bd2 {[%clk 0:01:22]}  c5 {[%clk 0:02:06]} 19. d5 {[%clk 0:01:21]}  e5 {[%clk 0:02:04]} 20. Bc1 {[%clk 0:01:17]}  Nd7 {[%clk 0:02:03]} 21. Bb2 {[%clk 0:01:17]}  Qe7 {[%clk 0:02:00]} 22. Rf1 {[%clk 0:01:15]}  Rfe8 {[%clk 0:01:58]} 23. g3 {[%clk 0:01:11]}  Rcd8 {[%clk 0:01:54]} 24. Nh4 {[%clk 0:01:09]}  Bc8 {[%clk 0:01:44]} 25. f4 {[%clk 0:01:03]}  f6 {[%clk 0:01:30]} 26. Be2 {[%clk 0:00:41]}  exf4 {[%clk 0:01:20]} 27. Rxf4 {[%clk 0:00:40]}  Ne5 {[%clk 0:01:16]} 28. Raf1 {[%clk 0:00:39]}  Bh3 {[%clk 0:00:54]} 29. R1f2 {[%clk 0:00:38]}  Be1 {[%clk 0:00:53]} 30. Bh5 {[%clk 0:00:34]}  Bxf2+ {[%clk 0:00:52]} 31. Rxf2 {[%clk 0:00:35]}  Rf8 {[%clk 0:00:49]} 32. Qd1 {[%clk 0:00:32]}  Qd7 {[%clk 0:00:45]} 33. Be2 {[%clk 0:00:26]}  Bg4 {[%clk 0:00:42]} 34. Nf5 {[%clk 0:00:21]}  Bxf5 {[%clk 0:00:40]} 35. Rxf5 {[%clk 0:00:22]}  Rde8 {[%clk 0:00:38]} 36. Qc2 {[%clk 0:00:19]}  Nf7 {[%clk 0:00:38]} 37. Bh5 {[%clk 0:00:15]}  Re7 {[%clk 0:00:33]} 38. Rf4 {[%clk 0:00:13]}  Nd6 {[%clk 0:00:31]} 39. Bg6 {[%clk 0:00:11]}  Rfe8 {[%clk 0:00:27]} 40. Bxe8 {[%clk 0:00:10]}  Qxe8 {[%clk 0:00:27]} 41. Qb3 {[%clk 0:00:07]}  Rxe4 {[%clk 0:00:24]} 42. Rxe4 {[%clk 0:00:03]}  Qxe4 {[%clk 0:00:25]} 43. Qxb6 {[%clk 0:00:04]}  Qe1+ {[%clk 0:00:23]} 44. Kg2 {[%clk 0:00:03]}  Qe2+ {[%clk 0:00:24]} 45. Kh3 {[%clk 0:00:03]}  Ne4 {[%clk 0:00:22]} 46. Bc1 {[%clk 0:00:02]}  Nf2+ {[%clk 0:00:19]} 47. Kg2 {[%clk 0:00:02]}  Ng4+ {[%clk 0:00:14]} 48. Kh3 {[%clk 0:00:01]}  h5 {[%clk 0:00:14]} 49. Qd8+ {[%clk 0:00:01]}  Kh7 {[%clk 0:00:14]} 0-1


[Site "https://www.chess.com"]

[Event "Titled Tuesday Blitz July 05 Late 2022"]
[White "D`Arruda, Ricardo D."]
[Black "Barria Zuniga, Daniel"]
[WhiteFideId "100692"]
[BlackFideId "3400816"]
[WhiteElo "2450"]
[BlackElo "2414"]
[Result "0-1"]
[Round "06"]
[TimeControl "180+1"]
[Date "2022.07.06"]
[WhiteClock "0:00:12"]
[BlackClock "0:00:07"]

1. d4 {[%clk 0:01:35]}  Nf6 {[%clk 0:02:58]} 2. Nf3 {[%clk 0:01:36]}  e6 {[%clk 0:02:57]} 3. Nc3 {[%clk 0:01:37]}  Bb4 {[%clk 0:02:56]} 4. e4 {[%clk 0:01:38]}  Nxe4 {[%clk 0:02:56]} 5. Qd3 {[%clk 0:01:36]}  f5 {[%clk 0:02:50]} 6. a3 {[%clk 0:01:35]}  Bxc3+ {[%clk 0:02:50]} 7. bxc3 {[%clk 0:01:36]}  O-O {[%clk 0:02:50]} 8. Nd2 {[%clk 0:01:36]}  d5 {[%clk 0:02:48]} 9. f3 {[%clk 0:01:34]}  Nd6 {[%clk 0:02:40]} 10. c4 {[%clk 0:01:33]}  c6 {[%clk 0:02:37]} 11. Be2 {[%clk 0:01:28]}  b6 {[%clk 0:02:33]} 12. cxd5 {[%clk 0:01:28]}  cxd5 {[%clk 0:02:17]} 13. Kf2 {[%clk 0:01:27]}  Ba6 {[%clk 0:02:08]} 14. Qe3 {[%clk 0:01:27]}  Qf6 {[%clk 0:01:27]} 15. Bxa6 {[%clk 0:01:23]}  Nxa6 {[%clk 0:01:27]} 16. Re1 {[%clk 0:01:19]}  Nc7 {[%clk 0:01:27]} 17. Bb2 {[%clk 0:01:13]}  Rfe8 {[%clk 0:01:21]} 18. Rac1 {[%clk 0:01:10]}  Nc4 {[%clk 0:01:14]} 19. Nxc4 {[%clk 0:01:10]}  dxc4 {[%clk 0:01:14]} 20. Qc3 {[%clk 0:01:03]}  b5 {[%clk 0:01:12]} 21. Qa5 {[%clk 0:01:02]}  Nd5 {[%clk 0:01:10]} 22. g3 {[%clk 0:00:56]}  a6 {[%clk 0:01:06]} 23. Re2 {[%clk 0:00:55]}  Qd8 {[%clk 0:00:47]} 24. Qd2 {[%clk 0:00:52]}  Qc7 {[%clk 0:00:47]} 25. c3 {[%clk 0:00:51]}  Kf7 {[%clk 0:00:43]} 26. Rce1 {[%clk 0:00:52]}  h6 {[%clk 0:00:43]} 27. h4 {[%clk 0:00:46]}  Rad8 {[%clk 0:00:42]} 28. Kg2 {[%clk 0:00:46]}  Nf6 {[%clk 0:00:41]} 29. Bc1 {[%clk 0:00:44]}  Nd5 {[%clk 0:00:37]} 30. Qc2 {[%clk 0:00:41]}  Qc6 {[%clk 0:00:37]} 31. Bd2 {[%clk 0:00:40]}  Qd6 {[%clk 0:00:34]} 32. Qc1 {[%clk 0:00:38]}  Rg8 {[%clk 0:00:32]} 33. Re5 {[%clk 0:00:37]}  Rde8 {[%clk 0:00:30]} 34. Bf4 {[%clk 0:00:34]}  Qd7 {[%clk 0:00:28]} 35. h5 {[%clk 0:00:30]}  Qd8 {[%clk 0:00:23]} 36. Qd2 {[%clk 0:00:25]}  Qa5 {[%clk 0:00:21]} 37. Bxh6 {[%clk 0:00:20]}  Qxc3 {[%clk 0:00:18]} 38. Qg5 {[%clk 0:00:18]}  gxh6 {[%clk 0:00:17]} 39. Qxh6 {[%clk 0:00:18]}  Qxd4 {[%clk 0:00:15]} 40. Rxe6 {[%clk 0:00:17]}  Nf6 {[%clk 0:00:14]} 41. Rxe8 {[%clk 0:00:13]}  Rxe8 {[%clk 0:00:13]} 42. Rxe8 {[%clk 0:00:14]}  Kxe8 {[%clk 0:00:11]} 43. Qg6+ {[%clk 0:00:15]}  Ke7 {[%clk 0:00:11]} 44. h6 {[%clk 0:00:15]}  Qd2+ {[%clk 0:00:10]} 45. Kh3 {[%clk 0:00:15]}  Qc1 {[%clk 0:00:09]} 46. Kg2 {[%clk 0:00:14]}  Qd2+ {[%clk 0:00:08]} 47. Kh3 {[%clk 0:00:15]}  Qe1 {[%clk 0:00:09]} 48. Kg2 {[%clk 0:00:14]}  Qe2+ {[%clk 0:00:09]} 49. Kh3 {[%clk 0:00:14]}  Qxf3 {[%clk 0:00:09]} 50. h7 {[%clk 0:00:12]}  Qh1# {[%clk 0:00:07]} 0-1


[Site "https://www.chess.com"]

[Event "Titled Tuesday Blitz July 05 Late 2022"]
[White "De Arruda, Leandro Formes"]
[Black "Gardezi, Arsal"]
[WhiteFideId "22722009"]
[BlackFideId "30949521"]
[WhiteElo "1852"]
[BlackElo "1781"]
[Result "0-1"]
[Round "06"]
[TimeControl "180+1"]
[Date "2022.07.06"]
[WhiteClock "0:00:07"]
[BlackClock "0:00:27"]

1. d4 {[%clk 0:03:00]}  Nf6 {[%clk 0:02:57]} 2. Nf3 {[%clk 0:03:00]}  e6 {[%clk 0:02:57]} 3. e3 {[%clk 0:02:39]}  b6 {[%clk 0:02:57]} 4. Bd3 {[%clk 0:02:39]}  Bb7 {[%clk 0:02:57]} 5. Nbd2 {[%clk 0:02:40]}  Be7 {[%clk 0:02:53]} 6. O-O {[%clk 0:02:40]}  O-O {[%clk 0:02:52]} 7. b3 {[%clk 0:02:40]}  d5 {[%clk 0:02:51]} 8. Bb2 {[%clk 0:02:40]}  c5 {[%clk 0:02:50]} 9. Ne5 {[%clk 0:02:40]}  Nc6 {[%clk 0:02:46]} 10. f4 {[%clk 0:02:38]}  Bd6 {[%clk 0:02:45]} 11. Qf3 {[%clk 0:02:36]}  Ne7 {[%clk 0:02:45]} 12. g4 {[%clk 0:02:35]}  Qc7 {[%clk 0:02:18]} 13. g5 {[%clk 0:02:32]}  Ne8 {[%clk 0:02:13]} 14. Qh5 {[%clk 0:02:11]}  g6 {[%clk 0:02:13]} 15. Qh6 {[%clk 0:02:10]}  Bxe5 {[%clk 0:01:59]} 16. fxe5 {[%clk 0:01:56]}  Ng7 {[%clk 0:01:58]} 17. Rf6 {[%clk 0:01:32]}  Kh8 {[%clk 0:01:43]} 18. Raf1 {[%clk 0:01:22]}  Ng8 {[%clk 0:01:43]} 19. Qh4 {[%clk 0:01:13]}  c4 {[%clk 0:01:27]} 20. bxc4 {[%clk 0:01:08]}  dxc4 {[%clk 0:01:27]} 21. Nxc4 {[%clk 0:01:09]}  Nxf6 {[%clk 0:01:24]} 22. gxf6 {[%clk 0:00:57]}  Nf5 {[%clk 0:01:19]} 23. Qh3 {[%clk 0:00:49]}  h5 {[%clk 0:01:17]} 24. e4 {[%clk 0:00:45]}  Nh6 {[%clk 0:01:16]} 25. Nd6 {[%clk 0:00:37]}  Rad8 {[%clk 0:01:13]} 26. Bc1 {[%clk 0:00:28]}  Kh7 {[%clk 0:00:58]} 27. Be2 {[%clk 0:00:23]}  Rxd6 {[%clk 0:00:53]} 28. Qe3 {[%clk 0:00:18]}  Ng8 {[%clk 0:00:43]} 29. exd6 {[%clk 0:00:18]}  Qxd6 {[%clk 0:00:43]} 30. e5 {[%clk 0:00:17]}  Qc6 {[%clk 0:00:37]} 31. Bf3 {[%clk 0:00:17]}  Qc7 {[%clk 0:00:37]} 32. Bxb7 {[%clk 0:00:17]}  Qxb7 {[%clk 0:00:38]} 33. c4 {[%clk 0:00:13]}  Rc8 {[%clk 0:00:37]} 34. Qd3 {[%clk 0:00:12]}  Nh6 {[%clk 0:00:37]} 35. Bxh6 {[%clk 0:00:11]}  Kxh6 {[%clk 0:00:37]} 36. d5 {[%clk 0:00:10]}  b5 {[%clk 0:00:34]} 37. Rc1 {[%clk 0:00:09]}  bxc4 {[%clk 0:00:34]} 38. Rxc4 {[%clk 0:00:06]}  Rxc4 {[%clk 0:00:33]} 39. Qxc4 {[%clk 0:00:07]}  Qxd5 {[%clk 0:00:33]} 40. Qxd5 {[%clk 0:00:07]}  exd5 {[%clk 0:00:33]} 41. Kf2 {[%clk 0:00:06]}  Kg5 {[%clk 0:00:33]} 42. Ke3 {[%clk 0:00:07]}  Kf5 {[%clk 0:00:34]} 43. Kd4 {[%clk 0:00:07]}  Ke6 {[%clk 0:00:33]} 44. h4 {[%clk 0:00:06]}  a6 {[%clk 0:00:27]} 45. a3 {[%clk 0:00:05]}  a5 {[%clk 0:00:27]} 46. a4 {[%clk 0:00:05]}  g5 {[%clk 0:00:27]} 47. hxg5 {[%clk 0:00:05]}  h4 {[%clk 0:00:28]} 48. g6 {[%clk 0:00:05]}  fxg6 {[%clk 0:00:28]} 49. f7 {[%clk 0:00:05]}  Kxf7 {[%clk 0:00:28]} 50. Kxd5 {[%clk 0:00:05]}  h3 {[%clk 0:00:29]} 51. Kd6 {[%clk 0:00:05]}  h2 {[%clk 0:00:29]} 52. Kd7 {[%clk 0:00:06]}  h1=Q {[%clk 0:00:28]} 53. e6+ {[%clk 0:00:07]}  Kf6 {[%clk 0:00:27]} 54. e7 {[%clk 0:00:08]}  Qd5+ {[%clk 0:00:27]} 55. Ke8 {[%clk 0:00:06]}  Ke6 {[%clk 0:00:27]} 56. Kf8 {[%clk 0:00:06]}  Qa8+ {[%clk 0:00:27]} 57. Kg7 {[%clk 0:00:06]}  Kxe7 {[%clk 0:00:28]} 58. Kxg6 {[%clk 0:00:07]}  Qc6+ {[%clk 0:00:27]} 0-1


[Site "https://www.chess.com"]

[Event "Titled Tuesday Blitz July 05 Late 2022"]
[White "Domingo Nunez, Alejandro"]
[Black "Holt, Conrad"]
[WhiteFideId "22245561"]
[BlackFideId "2034387"]
[WhiteElo "2222"]
[BlackElo "2586"]
[Result "1-0"]
[Round "06"]
[TimeControl "180+1"]
[Date "2022.07.05"]
[WhiteClock "0:00:10"]
[BlackClock "0:00:03"]

1. Nf3 {[%clk 0:03:00]}  d5 {[%clk 0:02:59]} 2. g3 {[%clk 0:03:00]}  Bg4 {[%clk 0:02:59]} 3. Bg2 {[%clk 0:02:59]}  Nd7 {[%clk 0:02:58]} 4. h3 {[%clk 0:02:59]}  Bxf3 {[%clk 0:02:57]} 5. Bxf3 {[%clk 0:03:00]}  e6 {[%clk 0:02:54]} 6. d4 {[%clk 0:02:59]}  Ngf6 {[%clk 0:02:53]} 7. O-O {[%clk 0:03:00]}  c6 {[%clk 0:02:50]} 8. Nd2 {[%clk 0:03:00]}  Bd6 {[%clk 0:02:48]} 9. e4 {[%clk 0:02:55]}  dxe4 {[%clk 0:02:44]} 10. Nxe4 {[%clk 0:02:56]}  Nxe4 {[%clk 0:02:45]} 11. Bxe4 {[%clk 0:02:57]}  O-O {[%clk 0:02:45]} 12. Bg2 {[%clk 0:02:54]}  Qc7 {[%clk 0:02:39]} 13. c4 {[%clk 0:02:50]}  e5 {[%clk 0:02:29]} 14. Be3 {[%clk 0:02:40]}  exd4 {[%clk 0:02:25]} 15. Bxd4 {[%clk 0:02:36]}  Rad8 {[%clk 0:02:22]} 16. Qc2 {[%clk 0:02:28]}  Nc5 {[%clk 0:02:11]} 17. Rad1 {[%clk 0:02:26]}  Ne6 {[%clk 0:02:11]} 18. Bc3 {[%clk 0:02:24]}  Bc5 {[%clk 0:02:11]} 19. b4 {[%clk 0:01:59]}  Bd4 {[%clk 0:02:06]} 20. c5 {[%clk 0:01:53]}  Rd7 {[%clk 0:01:50]} 21. Rd3 {[%clk 0:01:38]}  Rfd8 {[%clk 0:01:44]} 22. Rfd1 {[%clk 0:01:36]}  Qe5 {[%clk 0:01:39]} 23. Re1 {[%clk 0:00:51]}  Qf5 {[%clk 0:01:25]} 24. Bxd4 {[%clk 0:00:32]}  Nxd4 {[%clk 0:01:05]} 25. Rxd4 {[%clk 0:00:32]}  Qxc2 {[%clk 0:01:03]} 26. Rxd7 {[%clk 0:00:32]}  Rf8 {[%clk 0:01:00]} 27. Rxb7 {[%clk 0:00:31]}  Qd2 {[%clk 0:00:26]} 28. Ree7 {[%clk 0:00:31]}  Qc1+ {[%clk 0:00:22]} 29. Kh2 {[%clk 0:00:31]}  Qb2 {[%clk 0:00:19]} 30. b5 {[%clk 0:00:26]}  cxb5 {[%clk 0:00:13]} 31. Rxf7 {[%clk 0:00:24]}  Rd8 {[%clk 0:00:06]} 32. c6 {[%clk 0:00:20]}  Qc2 {[%clk 0:00:05]} 33. c7 {[%clk 0:00:15]}  Rc8 {[%clk 0:00:05]} 34. Rd7 {[%clk 0:00:14]}  Qxf2 {[%clk 0:00:03]} 35. Rb8 {[%clk 0:00:11]}  h5 {[%clk 0:00:02]} 36. Rxc8+ {[%clk 0:00:11]}  Kh7 {[%clk 0:00:03]} 37. Rh8+ {[%clk 0:00:11]}  Kxh8 {[%clk 0:00:03]} 38. c8=Q+ {[%clk 0:00:11]}  Kh7 {[%clk 0:00:03]} 39. Rd8 {[%clk 0:00:10]}  h4 {[%clk 0:00:03]} 40. Rh8+ {[%clk 0:00:10]}  Kg6 {[%clk 0:00:03]} 41. Qe6+ {[%clk 0:00:10]}  Kg5 {[%clk 0:00:03]} 42. gxh4+ {[%clk 0:00:10]}  Kf4 {[%clk 0:00:03]} 43. Qe4# {[%clk 0:00:10]} 1-0


[Site "https://www.chess.com"]

[Event "Titled Tuesday Blitz July 05 Late 2022"]
[White "Drygalov, Andrey"]
[Black "Tica, Sven"]
[WhiteFideId "24171735"]
[BlackFideId "14526948"]
[WhiteElo "2531"]
[BlackElo "2346"]
[Result "1/2-1/2"]
[Round "06"]
[TimeControl "180+1"]
[Date "2022.07.05"]
[WhiteClock "0:00:10"]
[BlackClock "0:00:36"]

1. e4 {[%clk 0:03:00]}  g6 {[%clk 0:03:00]} 2. d4 {[%clk 0:02:57]}  Bg7 {[%clk 0:03:01]} 3. Nc3 {[%clk 0:02:58]}  a6 {[%clk 0:03:01]} 4. f4 {[%clk 0:02:58]}  b5 {[%clk 0:03:02]} 5. Nf3 {[%clk 0:02:59]}  Bb7 {[%clk 0:03:02]} 6. Bd3 {[%clk 0:02:59]}  d6 {[%clk 0:03:03]} 7. O-O {[%clk 0:02:59]}  Nd7 {[%clk 0:03:03]} 8. Be3 {[%clk 0:02:59]}  e6 {[%clk 0:03:02]} 9. f5 {[%clk 0:02:57]}  Ngf6 {[%clk 0:02:39]} 10. fxe6 {[%clk 0:02:52]}  fxe6 {[%clk 0:02:40]} 11. a3 {[%clk 0:02:48]}  O-O {[%clk 0:02:37]} 12. Qe1 {[%clk 0:02:47]}  Ng4 {[%clk 0:02:35]} 13. Bd2 {[%clk 0:02:47]}  c5 {[%clk 0:02:35]} 14. h3 {[%clk 0:02:47]}  Ngf6 {[%clk 0:02:31]} 15. Ng5 {[%clk 0:02:23]}  Qe7 {[%clk 0:02:24]} 16. e5 {[%clk 0:02:09]}  dxe5 {[%clk 0:02:19]} 17. dxe5 {[%clk 0:02:10]}  Nd5 {[%clk 0:02:19]} 18. Nf3 {[%clk 0:01:17]}  c4 {[%clk 0:02:09]} 19. Be4 {[%clk 0:01:16]}  Nxe5 {[%clk 0:02:06]} 20. Kh1 {[%clk 0:00:54]}  Nxc3 {[%clk 0:01:46]} 21. Bxb7 {[%clk 0:00:38]}  Qxb7 {[%clk 0:01:46]} 22. Bxc3 {[%clk 0:00:38]}  Nxf3 {[%clk 0:01:41]} 23. Qxe6+ {[%clk 0:00:38]}  Kh8 {[%clk 0:01:38]} 24. Bxg7+ {[%clk 0:00:37]}  Kxg7 {[%clk 0:01:38]} 25. gxf3 {[%clk 0:00:37]}  Rxf3 {[%clk 0:01:36]} 26. Qe5+ {[%clk 0:00:37]}  Kh6 {[%clk 0:01:29]} 27. Kh2 {[%clk 0:00:31]}  Raf8 {[%clk 0:01:27]} 28. Rxf3 {[%clk 0:00:31]}  Qxf3 {[%clk 0:01:26]} 29. Rg1 {[%clk 0:00:30]}  Rf5 {[%clk 0:01:15]} 30. Qe7 {[%clk 0:00:27]}  Qf2+ {[%clk 0:01:07]} 31. Kh1 {[%clk 0:00:13]}  Qf3+ {[%clk 0:01:07]} 32. Kh2 {[%clk 0:00:13]}  Qf4+ {[%clk 0:01:00]} 33. Kh1 {[%clk 0:00:12]}  Re5 {[%clk 0:00:54]} 34. Qb7 {[%clk 0:00:03]}  Re2 {[%clk 0:00:52]} 35. Rg2 {[%clk 0:00:03]}  Qf1+ {[%clk 0:00:32]} 36. Kh2 {[%clk 0:00:02]}  Qxg2+ {[%clk 0:00:32]} 37. Qxg2 {[%clk 0:00:03]}  Rxg2+ {[%clk 0:00:33]} 38. Kxg2 {[%clk 0:00:04]}  Kg5 {[%clk 0:00:33]} 39. Kg3 {[%clk 0:00:05]}  Kf5 {[%clk 0:00:34]} 40. Kf3 {[%clk 0:00:05]}  g5 {[%clk 0:00:34]} 41. b3 {[%clk 0:00:04]}  cxb3 {[%clk 0:00:34]} 42. cxb3 {[%clk 0:00:05]}  h5 {[%clk 0:00:35]} 43. Ke3 {[%clk 0:00:05]}  g4 {[%clk 0:00:35]} 44. hxg4+ {[%clk 0:00:06]}  hxg4 {[%clk 0:00:36]} 45. a4 {[%clk 0:00:06]}  bxa4 {[%clk 0:00:33]} 46. bxa4 {[%clk 0:00:07]}  a5 {[%clk 0:00:34]} 47. Kf2 {[%clk 0:00:02]}  Kf4 {[%clk 0:00:34]} 48. Kg2 {[%clk 0:00:02]}  g3 {[%clk 0:00:32]} 49. Kg1 {[%clk 0:00:02]}  Ke4 {[%clk 0:00:30]} 50. Kg2 {[%clk 0:00:02]}  Kd4 {[%clk 0:00:31]} 51. Kxg3 {[%clk 0:00:03]}  Kc4 {[%clk 0:00:32]} 52. Kf2 {[%clk 0:00:04]}  Kb4 {[%clk 0:00:33]} 53. Ke1 {[%clk 0:00:05]}  Kxa4 {[%clk 0:00:34]} 54. Kd1 {[%clk 0:00:06]}  Kb3 {[%clk 0:00:33]} 55. Kc1 {[%clk 0:00:07]}  Ka3 {[%clk 0:00:33]} 56. Kb1 {[%clk 0:00:07]}  Kb3 {[%clk 0:00:33]} 57. Ka1 {[%clk 0:00:08]}  a4 {[%clk 0:00:34]} 58. Kb1 {[%clk 0:00:09]}  a3 {[%clk 0:00:35]} 59. Ka1 {[%clk 0:00:10]}  a2 {[%clk 0:00:36]} 1/2-1/2


[Site "https://www.chess.com"]

[Event "Titled Tuesday Blitz July 05 Late 2022"]
[White "Ezat, Mohamed"]
[Black "Navarrete Mendez, Gonzalo Alberto"]
[WhiteFideId "10600906"]
[BlackFideId "5106850"]
[WhiteElo "2386"]
[BlackElo "2261"]
[Result "1-0"]
[Round "06"]
[TimeControl "180+1"]
[Date "2022.07.05"]
[WhiteClock "0:01:43"]
[BlackClock "0:00:19"]

1. d4 {[%clk 0:03:00]}  d5 {[%clk 0:02:59]} 2. c4 {[%clk 0:03:00]}  dxc4 {[%clk 0:03:00]} 3. e3 {[%clk 0:02:59]}  Nc6 {[%clk 0:03:00]} 4. Bxc4 {[%clk 0:02:58]}  e5 {[%clk 0:03:00]} 5. d5 {[%clk 0:02:57]}  Nce7 {[%clk 0:03:00]} 6. Nc3 {[%clk 0:02:56]}  Ng6 {[%clk 0:02:58]} 7. h4 {[%clk 0:02:55]}  h5 {[%clk 0:02:52]} 8. Nf3 {[%clk 0:02:53]}  Nf6 {[%clk 0:02:46]} 9. Qc2 {[%clk 0:02:45]}  a6 {[%clk 0:02:42]} 10. Ng5 {[%clk 0:02:44]}  Bd6 {[%clk 0:02:39]} 11. Ne6 {[%clk 0:02:39]}  Qd7 {[%clk 0:02:03]} 12. Nxg7+ {[%clk 0:02:35]}  Kf8 {[%clk 0:02:03]} 13. Ne6+ {[%clk 0:02:35]}  Kg8 {[%clk 0:01:43]} 14. Rh3 {[%clk 0:02:18]}  b5 {[%clk 0:01:28]} 15. Rg3 {[%clk 0:02:16]}  Ng4 {[%clk 0:01:20]} 16. Be2 {[%clk 0:02:13]}  fxe6 {[%clk 0:01:02]} 17. Qxg6+ {[%clk 0:02:12]}  Qg7 {[%clk 0:01:02]} 18. Bxg4 {[%clk 0:02:06]}  Qxg6 {[%clk 0:00:57]} 19. Bxe6+ {[%clk 0:02:06]}  Kh7 {[%clk 0:00:57]} 20. Rxg6 {[%clk 0:02:02]}  Kxg6 {[%clk 0:00:58]} 21. Bxc8 {[%clk 0:01:58]}  Raxc8 {[%clk 0:00:58]} 22. g3 {[%clk 0:01:58]}  b4 {[%clk 0:00:54]} 23. Ne4 {[%clk 0:01:57]}  Kf5 {[%clk 0:00:54]} 24. f3 {[%clk 0:01:56]}  Kg6 {[%clk 0:00:46]} 25. Ke2 {[%clk 0:01:56]}  a5 {[%clk 0:00:45]} 26. Bd2 {[%clk 0:01:56]}  Rhd8 {[%clk 0:00:39]} 27. Rc1 {[%clk 0:01:56]}  Kf5 {[%clk 0:00:30]} 28. Rc6 {[%clk 0:01:55]}  Rd7 {[%clk 0:00:28]} 29. Ra6 {[%clk 0:01:53]}  Be7 {[%clk 0:00:20]} 30. g4+ {[%clk 0:01:43]}  hxg4 {[%clk 0:00:19]} 31. Ng3# {[%clk 0:01:43]} 1-0


[Site "https://www.chess.com"]

[Event "Titled Tuesday Blitz July 05 Late 2022"]
[White "Gubajdullin, Alexei"]
[Black "Boder, Jan"]
[WhiteFideId "4141202"]
[BlackFideId "16243226"]
[WhiteElo "2190"]
[BlackElo "2064"]
[Result "0-1"]
[Round "06"]
[TimeControl "180+1"]
[Date "2022.07.06"]
[WhiteClock "0:00:02"]
[BlackClock "0:00:05"]

1. c4 {[%clk 0:03:00]}  e5 {[%clk 0:02:59]} 2. Nc3 {[%clk 0:02:58]}  Nf6 {[%clk 0:02:59]} 3. Nf3 {[%clk 0:02:56]}  Nc6 {[%clk 0:02:59]} 4. e3 {[%clk 0:02:55]}  Bb4 {[%clk 0:02:58]} 5. Qc2 {[%clk 0:02:54]}  Bxc3 {[%clk 0:02:56]} 6. Qxc3 {[%clk 0:02:54]}  e4 {[%clk 0:02:52]} 7. Nd4 {[%clk 0:02:53]}  Ne5 {[%clk 0:02:47]} 8. f4 {[%clk 0:02:45]}  exf3 {[%clk 0:02:42]} 9. Nxf3 {[%clk 0:02:34]}  Nxf3+ {[%clk 0:02:38]} 10. gxf3 {[%clk 0:02:34]}  d6 {[%clk 0:02:37]} 11. Rg1 {[%clk 0:02:32]}  Be6 {[%clk 0:02:02]} 12. b3 {[%clk 0:02:31]}  Qe7 {[%clk 0:01:52]} 13. Rxg7 {[%clk 0:02:24]}  O-O-O {[%clk 0:01:52]} 14. Bb2 {[%clk 0:02:22]}  Nd7 {[%clk 0:01:50]} 15. O-O-O {[%clk 0:02:17]}  Rhg8 {[%clk 0:01:46]} 16. Bd3 {[%clk 0:02:00]}  Ne5 {[%clk 0:01:41]} 17. Rxg8 {[%clk 0:01:54]}  Rxg8 {[%clk 0:01:38]} 18. Bxh7 {[%clk 0:01:53]}  Rg2 {[%clk 0:01:32]} 19. f4 {[%clk 0:01:48]}  Rxh2 {[%clk 0:01:15]} 20. Bc2 {[%clk 0:01:42]}  Nc6 {[%clk 0:01:05]} 21. Qf6 {[%clk 0:01:22]}  a5 {[%clk 0:00:47]} 22. Qxe7 {[%clk 0:01:20]}  Nxe7 {[%clk 0:00:48]} 23. e4 {[%clk 0:01:15]}  Nc6 {[%clk 0:00:47]} 24. f5 {[%clk 0:01:13]}  Bd7 {[%clk 0:00:46]} 25. Rg1 {[%clk 0:01:09]}  Be8 {[%clk 0:00:46]} 26. a3 {[%clk 0:01:03]}  Kd7 {[%clk 0:00:46]} 27. Bc3 {[%clk 0:01:01]}  b6 {[%clk 0:00:46]} 28. b4 {[%clk 0:01:01]}  Ne5 {[%clk 0:00:44]} 29. Bxe5 {[%clk 0:00:59]}  dxe5 {[%clk 0:00:45]} 30. Ba4+ {[%clk 0:00:56]}  c6 {[%clk 0:00:44]} 31. Rg8 {[%clk 0:00:52]}  axb4 {[%clk 0:00:24]} 32. axb4 {[%clk 0:00:50]}  Rh4 {[%clk 0:00:22]} 33. d3 {[%clk 0:00:37]}  Rh6 {[%clk 0:00:16]} 34. Bxc6+ {[%clk 0:00:34]}  Rxc6 {[%clk 0:00:15]} 35. Kc2 {[%clk 0:00:24]}  Rh6 {[%clk 0:00:14]} 36. Kc3 {[%clk 0:00:23]}  Rh3 {[%clk 0:00:14]} 37. b5 {[%clk 0:00:22]}  Ke7 {[%clk 0:00:14]} 38. Rg1 {[%clk 0:00:16]}  Bd7 {[%clk 0:00:11]} 39. Ra1 {[%clk 0:00:16]}  Rh6 {[%clk 0:00:10]} 40. Ra7 {[%clk 0:00:15]}  Rd6 {[%clk 0:00:09]} 41. Rb7 {[%clk 0:00:14]}  Kd8 {[%clk 0:00:07]} 42. Rb8+ {[%clk 0:00:14]}  Kc7 {[%clk 0:00:07]} 43. Rf8 {[%clk 0:00:14]}  f6 {[%clk 0:00:07]} 44. Rf7 {[%clk 0:00:13]}  Kd8 {[%clk 0:00:07]} 45. Rf8+ {[%clk 0:00:13]}  Ke7 {[%clk 0:00:07]} 46. Rb8 {[%clk 0:00:13]}  Be8 {[%clk 0:00:06]} 47. Rb7+ {[%clk 0:00:13]}  Bd7 {[%clk 0:00:06]} 48. Kc2 {[%clk 0:00:13]}  Kd8 {[%clk 0:00:06]} 49. Rb8+ {[%clk 0:00:13]}  Kc7 {[%clk 0:00:06]} 50. Rf8 {[%clk 0:00:13]}  Bc8 {[%clk 0:00:07]} 51. Kd2 {[%clk 0:00:12]}  Bb7 {[%clk 0:00:06]} 52. Ke3 {[%clk 0:00:12]}  Bc8 {[%clk 0:00:06]} 53. Ke2 {[%clk 0:00:11]}  Bd7 {[%clk 0:00:06]} 54. Ke3 {[%clk 0:00:11]}  Kb7 {[%clk 0:00:06]} 55. Rd8 {[%clk 0:00:10]}  Kc7 {[%clk 0:00:07]} 56. Rf8 {[%clk 0:00:10]}  Bc8 {[%clk 0:00:06]} 57. Ke2 {[%clk 0:00:10]}  Kd7 {[%clk 0:00:07]} 58. Rf7+ {[%clk 0:00:09]}  Ke8 {[%clk 0:00:07]} 59. Rh7 {[%clk 0:00:09]}  Bd7 {[%clk 0:00:05]} 60. Rh3 {[%clk 0:00:07]}  Ke7 {[%clk 0:00:06]} 61. Rg3 {[%clk 0:00:07]}  Be8 {[%clk 0:00:06]} 62. Rg8 {[%clk 0:00:06]}  Rd8 {[%clk 0:00:05]} 63. Kd2 {[%clk 0:00:02]}  Bf7 {[%clk 0:00:05]} 0-1


[Site "https://www.chess.com"]